[Event "*** Titled Tuesday Blitz"]
[Site "Chess.com"]
[Date "2019.07.02"]
[Round "6"]
[White "Heineccius"]
[Black "ehrenfeld"]
[Result "1-0"]
[WhiteElo "2532"]
[BlackElo "2552"]
[TimeControl "180+2"]
[EndTime "14:23:44 PDT"]
[Termination "Heineccius won on time"]

1. d4 {[%clk 0:02:39.9]} 1... Nf6 {[%clk 0:02:59.7]} 2. c4 {[%clk 0:02:41]} 2...
e6 {[%clk 0:03:00.5]} 3. Nc3 {[%clk 0:02:42]} 3... Bb4 {[%clk 0:03:01.2]} 4. g3
{[%clk 0:02:41.6]} 4... c5 {[%clk 0:03:00.3]} 5. Nf3 {[%clk 0:02:42.1]} 5...
Bxc3+ {[%clk 0:02:59.6]} 6. bxc3 {[%clk 0:02:42.6]} 6... Qa5 {[%clk 0:03:00.7]}
7. Bg2 {[%clk 0:02:38]} 7... Qxc3+ {[%clk 0:02:58.7]} 8. Bd2 {[%clk 0:02:37.5]}
8... Qxc4 {[%clk 0:02:59.2]} 9. O-O {[%clk 0:02:34.6]} 9... O-O {[%clk
0:02:55.3]} 10. Bf4 {[%clk 0:02:31.6]} 10... d5 {[%clk 0:02:40]} 11. Bd6 {[%clk
0:02:23.6]} 11... Re8 {[%clk 0:02:39]} 12. Bxc5 {[%clk 0:02:11.1]} 12... Nbd7
{[%clk 0:02:29.5]} 13. Bd6 {[%clk 0:02:06.3]} 13... b6 {[%clk 0:02:26.7]} 14.
Re1 {[%clk 0:01:54.9]} 14... Ne4 {[%clk 0:02:05.5]} 15. Bf4 {[%clk 0:01:35.7]}
15... Ba6 {[%clk 0:01:54]} 16. Bf1 {[%clk 0:01:02]} 16... Qc6 {[%clk 0:01:27.5]}
17. Rc1 {[%clk 0:00:54.5]} 17... Bc4 {[%clk 0:01:11.6]} 18. Nd2 {[%clk
0:00:43.2]} 18... Nxd2 {[%clk 0:01:12]} 19. Qxd2 {[%clk 0:00:44.1]} 19... b5
{[%clk 0:01:11.7]} 20. a3 {[%clk 0:00:44.7]} 20... Rec8 {[%clk 0:01:09.4]} 21.
Bg2 {[%clk 0:00:43.4]} 21... a5 {[%clk 0:01:05.8]} 22. e4 {[%clk 0:00:42.4]}
22... Nf6 {[%clk 0:01:05.8]} 23. e5 {[%clk 0:00:42.3]} 23... Ne4 {[%clk
0:01:01.8]} 24. Bxe4 {[%clk 0:00:40.3]} 24... dxe4 {[%clk 0:01:02.4]} 25. Bg5
{[%clk 0:00:41.6]} 25... Qb7 {[%clk 0:00:54.4]} 26. Qf4 {[%clk 0:00:39.5]} 26...
Bd5 {[%clk 0:00:45.3]} 27. Rb1 {[%clk 0:00:36.2]} 27... h6 {[%clk 0:00:33.6]}
28. Bf6 {[%clk 0:00:27.8]} 28... Kf8 {[%clk 0:00:25.5]} 29. Qh4 {[%clk
0:00:20.3]} 29... gxf6 {[%clk 0:00:14]} 30. exf6 {[%clk 0:00:15.9]} 30... Ke8
{[%clk 0:00:15.1]} 31. Qxh6 {[%clk 0:00:16.9]} 31... Kd7 {[%clk 0:00:15.9]} 32.
h4 {[%clk 0:00:17.5]} 32... Kc6 {[%clk 0:00:15.5]} 33. Qf4 {[%clk 0:00:17.4]}
33... Kb6 {[%clk 0:00:15]} 34. Rxb5+ {[%clk 0:00:16.3]} 34... Kxb5 {[%clk
0:00:15.4]} 35. Rb1+ {[%clk 0:00:17.7]} 35... Ka6 {[%clk 0:00:16.6]} 36. Rxb7
{[%clk 0:00:19]} 36... Kxb7 {[%clk 0:00:17.9]} 37. Qd6 {[%clk 0:00:15.5]} 37...
Rc7 {[%clk 0:00:18.6]} 38. h5 {[%clk 0:00:15.1]} 38... Rh8 {[%clk 0:00:16.6]}
39. Qe5 {[%clk 0:00:15.9]} 39... a4 {[%clk 0:00:15.6]} 40. g4 {[%clk 0:00:15.6]}
40... Rc3 {[%clk 0:00:12.8]} 41. Qd6 {[%clk 0:00:14.2]} 41... Rg8 {[%clk
0:00:12]} 42. Qb4+ {[%clk 0:00:13.5]} 42... Kc6 {[%clk 0:00:09.6]} 43. Qxc3+
{[%clk 0:00:14.1]} 43... Kd7 {[%clk 0:00:06.8]} 44. Qg3 {[%clk 0:00:13.4]} 44...
e5 {[%clk 0:00:04.6]} 45. dxe5 {[%clk 0:00:12.1]} 45... Be6 {[%clk 0:00:05.3]}
46. g5 {[%clk 0:00:13]} 46... Bf5 {[%clk 0:00:03.6]} 47. Qf4 {[%clk 0:00:12.7]}
47... Ke6 {[%clk 0:00:03.7]} 48. Kh2 {[%clk 0:00:12.2]} 48... Rh8 {[%clk
0:00:04.1]} 49. h6 {[%clk 0:00:13.6]} 49... Rc8 {[%clk 0:00:03.3]} 50. Qd2
{[%clk 0:00:14.2]} 1-0

[Event "*** Titled Tuesday Blitz"]
[Site "Chess.com"]
[Date "2019.07.02"]
[Round "6"]
[White "doons21"]
[Black "dopolian"]
[Result "0-1"]
[WhiteElo "2431"]
[BlackElo "2339"]
[TimeControl "180+2"]
[EndTime "14:23:49 PDT"]
[Termination "dopolian won by resignation"]

1. e4 {[%clk 0:03:01.9]} 1... e5 {[%clk 0:03:00.5]} 2. Nf3 {[%clk 0:03:02.6]}
2... Nc6 {[%clk 0:03:01.8]} 3. Nc3 {[%clk 0:03:04]} 3... Nf6 {[%clk 0:03:03]} 4.
g3 {[%clk 0:03:05.4]} 4... d5 {[%clk 0:02:58.4]} 5. exd5 {[%clk 0:03:07.3]} 5...
Nxd5 {[%clk 0:03:00.3]} 6. Bg2 {[%clk 0:03:08.5]} 6... Nxc3 {[%clk 0:03:01.9]}
7. bxc3 {[%clk 0:03:10.4]} 7... Bc5 {[%clk 0:03:03.1]} 8. O-O {[%clk 0:03:11.5]}
8... O-O {[%clk 0:03:04]} 9. Re1 {[%clk 0:03:12.8]} 9... Bb6 {[%clk 0:03:04.9]}
10. h3 {[%clk 0:02:40.6]} 10... Re8 {[%clk 0:02:57.1]} 11. d3 {[%clk 0:02:40.1]}
11... Qd6 {[%clk 0:02:50.9]} 12. Be3 {[%clk 0:02:27]} 12... f6 {[%clk
0:02:45.3]} 13. Kh2 {[%clk 0:02:24.9]} 13... Be6 {[%clk 0:02:42.7]} 14. a4
{[%clk 0:02:16.3]} 14... Rad8 {[%clk 0:02:37.8]} 15. Qc1 {[%clk 0:02:17.3]}
15... Bxe3 {[%clk 0:02:17]} 16. Qxe3 {[%clk 0:02:16.7]} 16... b6 {[%clk
0:02:09.7]} 17. Nd2 {[%clk 0:02:15.1]} 17... Qd7 {[%clk 0:02:05.9]} 18. Ne4
{[%clk 0:02:10.7]} 18... Ne7 {[%clk 0:02:00.4]} 19. a5 {[%clk 0:02:01.6]} 19...
Nd5 {[%clk 0:01:59.1]} 20. Qd2 {[%clk 0:02:02.6]} 20... h6 {[%clk 0:01:47.2]}
21. axb6 {[%clk 0:02:00.7]} 21... axb6 {[%clk 0:01:46.8]} 22. c4 {[%clk
0:01:57.6]} 22... Ne7 {[%clk 0:01:45.1]} 23. Nc3 {[%clk 0:01:16.6]} 23... Bxc4
{[%clk 0:01:35]} 24. f4 {[%clk 0:01:16]} 24... exf4 {[%clk 0:01:30.9]} 25. Qxf4
{[%clk 0:01:16.9]} 25... Bf7 {[%clk 0:01:30.2]} 26. Ne4 {[%clk 0:01:14]} 26...
Nd5 {[%clk 0:01:25.1]} 27. Qh4 {[%clk 0:01:11.3]} 27... f5 {[%clk 0:01:07.6]}
28. Nf2 {[%clk 0:01:08.6]} 28... Nf6 {[%clk 0:01:03]} 29. Qf4 {[%clk 0:01:02.9]}
29... Bd5 {[%clk 0:00:57.6]} 30. c4 {[%clk 0:00:43.6]} 30... Bxg2 {[%clk
0:00:57.7]} 31. Kxg2 {[%clk 0:00:45.5]} 31... Kh8 {[%clk 0:00:44.4]} 32. Kf1
{[%clk 0:00:46.2]} 32... g5 {[%clk 0:00:34.8]} 33. Qf3 {[%clk 0:00:46.5]} 33...
Kg7 {[%clk 0:00:33.8]} 34. Rxe8 {[%clk 0:00:45.7]} 34... Rxe8 {[%clk 0:00:33.5]}
35. Ra7 {[%clk 0:00:47.6]} 35... Re7 {[%clk 0:00:28.1]} 36. Kg2 {[%clk
0:00:47.1]} 36... Qd6 {[%clk 0:00:28.7]} 37. Ra8 {[%clk 0:00:41.2]} 37... Qe6
{[%clk 0:00:25.6]} 38. Rd8 {[%clk 0:00:32.5]} 38... Rd7 {[%clk 0:00:25.1]} 39.
Rb8 {[%clk 0:00:29.1]} 39... Qe5 {[%clk 0:00:20.6]} 40. Qa8 {[%clk 0:00:28.6]}
40... Qe6 {[%clk 0:00:18.8]} 41. Rh8 {[%clk 0:00:28.9]} 41... Ng8 {[%clk
0:00:17.7]} 42. Rxg8+ {[%clk 0:00:24.7]} 42... Qxg8 {[%clk 0:00:19.6]} 43. Qc6
{[%clk 0:00:25.6]} 43... Re7 {[%clk 0:00:16]} 44. h4 {[%clk 0:00:23.5]} 44...
Qe6 {[%clk 0:00:16.3]} 45. Qa8 {[%clk 0:00:23.5]} 45... gxh4 {[%clk 0:00:15]}
46. gxh4 {[%clk 0:00:24.9]} 46... Kh7 {[%clk 0:00:15.3]} 47. Kf3 {[%clk
0:00:25.7]} 47... Qe3+ {[%clk 0:00:14.3]} 48. Kg2 {[%clk 0:00:26.7]} 48... Rg7+
{[%clk 0:00:15.3]} 49. Kf1 {[%clk 0:00:28.3]} 49... Qc1+ {[%clk 0:00:12.9]} 50.
Ke2 {[%clk 0:00:29.5]} 50... Re7+ {[%clk 0:00:14.2]} 51. Kf3 {[%clk 0:00:30.7]}
51... Qe3+ {[%clk 0:00:12.4]} 52. Kg2 {[%clk 0:00:31.9]} 52... Qe5 {[%clk
0:00:12.9]} 53. Qf3 {[%clk 0:00:29.8]} 53... Rg7+ {[%clk 0:00:11.7]} 54. Kf1
{[%clk 0:00:28.5]} 54... Qa1+ {[%clk 0:00:12.4]} 55. Ke2 {[%clk 0:00:29.9]}
55... Re7+ {[%clk 0:00:12.5]} 56. Kd2 {[%clk 0:00:31.2]} 56... Qe1+ {[%clk
0:00:09]} 57. Kc2 {[%clk 0:00:32.6]} 57... Re2+ {[%clk 0:00:09.6]} 58. Kb3
{[%clk 0:00:33.8]} 58... Qxf2 {[%clk 0:00:09.4]} 59. Qc6 {[%clk 0:00:34.9]}
59... Rb2+ {[%clk 0:00:09]} 60. Kc3 {[%clk 0:00:35.8]} 60... Qd2+ {[%clk
0:00:09.6]} 61. Kd4 {[%clk 0:00:37.3]} 61... Qf4+ {[%clk 0:00:11.1]} 62. Kd5
{[%clk 0:00:38.5]} 62... Qf3+ {[%clk 0:00:10.6]} 0-1

[Event "*** Titled Tuesday Blitz"]
[Site "Chess.com"]
[Date "2019.07.02"]
[Round "6"]
[White "TenisMaster"]
[Black "MarcoRiehle"]
[Result "1-0"]
[WhiteElo "2843"]
[BlackElo "2711"]
[TimeControl "180+2"]
[EndTime "14:23:59 PDT"]
[Termination "TenisMaster won by resignation"]

1. e4 {[%clk 0:03:01.9]} 1... e5 {[%clk 0:02:58.4]} 2. Nf3 {[%clk 0:03:02.5]}
2... Nf6 {[%clk 0:03:00]} 3. d3 {[%clk 0:02:53]} 3... Nc6 {[%clk 0:02:59.2]} 4.
Be2 {[%clk 0:02:52.9]} 4... d5 {[%clk 0:02:57.7]} 5. Nbd2 {[%clk 0:02:53.6]}
5... Bc5 {[%clk 0:02:53.3]} 6. O-O {[%clk 0:02:53.9]} 6... O-O {[%clk 0:02:51]}
7. c3 {[%clk 0:02:54.3]} 7... h6 {[%clk 0:02:51.4]} 8. b3 {[%clk 0:02:54.1]}
8... Be6 {[%clk 0:02:52.2]} 9. Bb2 {[%clk 0:02:52.3]} 9... Qe7 {[%clk
0:02:51.4]} 10. b4 {[%clk 0:02:52.1]} 10... Bb6 {[%clk 0:02:52.4]} 11. b5 {[%clk
0:02:46.2]} 11... Na5 {[%clk 0:02:53.3]} 12. Nxe5 {[%clk 0:02:43.3]} 12... dxe4
{[%clk 0:02:52.6]} 13. dxe4 {[%clk 0:02:43.2]} 13... Rad8 {[%clk 0:02:49.6]} 14.
Qc2 {[%clk 0:02:40.4]} 14... Bxa2 {[%clk 0:02:23.7]} 15. Rxa2 {[%clk 0:02:30.1]}
15... Qxe5 {[%clk 0:02:24.7]} 16. c4 {[%clk 0:02:31.1]} 16... Qf4 {[%clk
0:02:17.1]} 17. Bxf6 {[%clk 0:02:26.7]} 17... gxf6 {[%clk 0:02:12.1]} 18. c5
{[%clk 0:02:27.1]} 18... Bxc5 {[%clk 0:02:13.4]} 19. g3 {[%clk 0:02:10.5]} 19...
Qd6 {[%clk 0:01:56.6]} 20. e5 {[%clk 0:02:11]} 20... Qxd2 {[%clk 0:01:48.8]} 21.
Qxd2 {[%clk 0:02:11.3]} 21... Rxd2 {[%clk 0:01:50.7]} 22. Rxd2 {[%clk
0:02:12.2]} 22... fxe5 {[%clk 0:01:52.2]} 23. Rc2 {[%clk 0:02:02.3]} 23... Bb6
{[%clk 0:01:42.6]} 24. Rd1 {[%clk 0:01:59]} 24... Nb3 {[%clk 0:01:43.1]} 25. Rd7
{[%clk 0:01:59.4]} 25... Nd4 {[%clk 0:01:44.2]} 26. Ra2 {[%clk 0:01:59.7]} 26...
Nxe2+ {[%clk 0:01:24.5]} 27. Rxe2 {[%clk 0:01:59.1]} 27... Re8 {[%clk
0:01:26.1]} 28. Kg2 {[%clk 0:01:58]} 28... Re6 {[%clk 0:01:24.7]} 29. Rd5 {[%clk
0:01:48]} 29... Bd4 {[%clk 0:01:21.4]} 30. Rc2 {[%clk 0:01:44.5]} 30... c5
{[%clk 0:01:22.4]} 31. bxc6 {[%clk 0:01:44.6]} 31... bxc6 {[%clk 0:01:16]} 32.
Rd7 {[%clk 0:01:45]} 32... Rf6 {[%clk 0:01:10.8]} 33. Rc7 {[%clk 0:01:42.7]}
33... c5 {[%clk 0:01:11.1]} 34. Rxa7 {[%clk 0:01:43.6]} 34... c4 {[%clk
0:01:12.6]} 35. Rd7 {[%clk 0:01:40.1]} 35... c3 {[%clk 0:01:12.9]} 36. f4 {[%clk
0:01:41.1]} 36... Rb6 {[%clk 0:01:11.8]} 37. fxe5 {[%clk 0:01:41.4]} 37... Rb2
{[%clk 0:01:08.8]} 38. Rxb2 {[%clk 0:01:30.5]} 38... cxb2 {[%clk 0:01:10.7]} 39.
Rb7 {[%clk 0:01:31.5]} 39... Bxe5 {[%clk 0:01:11.9]} 40. Kf3 {[%clk 0:01:32.5]}
40... Kg7 {[%clk 0:01:13.1]} 41. Ke4 {[%clk 0:01:32.7]} 41... Bf6 {[%clk
0:01:12.1]} 42. Kf5 {[%clk 0:01:33.1]} 42... Bc3 {[%clk 0:01:13.3]} 43. h4
{[%clk 0:01:32.3]} 43... Bd4 {[%clk 0:01:14.2]} 44. g4 {[%clk 0:01:31.2]} 44...
Bc3 {[%clk 0:01:15.2]} 45. Ke4 {[%clk 0:01:25.5]} 45... Bf6 {[%clk 0:01:12.8]}
46. h5 {[%clk 0:01:21.4]} 46... Bc3 {[%clk 0:01:12.1]} 47. Rb6 {[%clk
0:01:21.5]} 47... Bf6 {[%clk 0:01:11.6]} 48. Kd5 {[%clk 0:01:22.2]} 48... Bc3
{[%clk 0:01:11.1]} 49. Kc5 {[%clk 0:01:18.2]} 49... Be5 {[%clk 0:01:07.3]} 50.
Kd5 {[%clk 0:01:15.3]} 50... Bc3 {[%clk 0:01:07.6]} 51. Kd6 {[%clk 0:01:01.3]}
51... Kf6 {[%clk 0:01:07.9]} 52. Rb5 {[%clk 0:01:02]} 52... Bd4 {[%clk
0:00:46.8]} 53. Kd7 {[%clk 0:01:01.9]} 53... Be5 {[%clk 0:00:33.7]} 54. Ke8
{[%clk 0:01:01.5]} 54... Ke6 {[%clk 0:00:34.9]} 55. Rb6+ {[%clk 0:00:47.8]}
55... Bd6 {[%clk 0:00:35.4]} 56. Rxb2 {[%clk 0:00:48]} 56... f5 {[%clk
0:00:36.2]} 57. g5 {[%clk 0:00:42.1]} 57... hxg5 {[%clk 0:00:37.9]} 58. h6
{[%clk 0:00:43.3]} 58... Kf6 {[%clk 0:00:19.7]} 59. Rb6 {[%clk 0:00:42.6]} 59...
Kg6 {[%clk 0:00:21.5]} 60. Rxd6+ {[%clk 0:00:43.2]} 60... Kh7 {[%clk 0:00:23.2]}
61. Rf6 {[%clk 0:00:43.4]} 61... g4 {[%clk 0:00:22.6]} 62. Kf7 {[%clk
0:00:31.5]} 62... g3 {[%clk 0:00:23.8]} 63. Rxf5 {[%clk 0:00:32.3]} 63... Kxh6
{[%clk 0:00:24.5]} 64. Rf3 {[%clk 0:00:33.2]} 1-0

[Event "*** Titled Tuesday Blitz"]
[Site "Chess.com"]
[Date "2019.07.02"]
[Round "6"]
[White "MathiasWomacka"]
[Black "saraswathii"]
[Result "1-0"]
[WhiteElo "2312"]
[BlackElo "2319"]
[TimeControl "180+2"]
[EndTime "14:24:05 PDT"]
[Termination "MathiasWomacka won by resignation"]

1. e4 {[%clk 0:03:01.9]} 1... c5 {[%clk 0:03:00.3]} 2. Nf3 {[%clk 0:03:02.1]}
2... e6 {[%clk 0:03:01.3]} 3. d4 {[%clk 0:03:02.9]} 3... cxd4 {[%clk 0:03:03.2]}
4. Nxd4 {[%clk 0:03:04.8]} 4... Nf6 {[%clk 0:03:04.5]} 5. Nc3 {[%clk 0:03:04.1]}
5... Nc6 {[%clk 0:03:03.5]} 6. Ndb5 {[%clk 0:03:01.1]} 6... Bb4 {[%clk
0:03:03.6]} 7. a3 {[%clk 0:03:00.6]} 7... Bxc3+ {[%clk 0:03:05.1]} 8. Nxc3
{[%clk 0:03:02.4]} 8... d5 {[%clk 0:03:06.5]} 9. exd5 {[%clk 0:03:03.9]} 9...
exd5 {[%clk 0:03:08.4]} 10. Bd3 {[%clk 0:03:03.9]} 10... d4 {[%clk 0:03:09.7]}
11. Ne2 {[%clk 0:02:59.3]} 11... O-O {[%clk 0:03:10.3]} 12. O-O {[%clk
0:03:00.1]} 12... Qd5 {[%clk 0:03:11.1]} 13. Nf4 {[%clk 0:02:59.8]} 13... Qd6
{[%clk 0:03:12]} 14. Nh5 {[%clk 0:02:55]} 14... Nxh5 {[%clk 0:02:53.2]} 15. Qxh5
{[%clk 0:02:56.9]} 15... h6 {[%clk 0:02:54.5]} 16. Bd2 {[%clk 0:02:52.2]} 16...
Bd7 {[%clk 0:02:51.5]} 17. f4 {[%clk 0:02:46.1]} 17... f5 {[%clk 0:02:34.4]} 18.
Rae1 {[%clk 0:02:19.1]} 18... Qf6 {[%clk 0:02:11.6]} 19. Qf3 {[%clk 0:02:01.9]}
19... Rad8 {[%clk 0:01:56.4]} 20. b4 {[%clk 0:01:43.3]} 20... a6 {[%clk
0:01:49.1]} 21. a4 {[%clk 0:01:43.8]} 21... Be6 {[%clk 0:01:40.3]} 22. b5 {[%clk
0:01:34.2]} 22... Bd5 {[%clk 0:01:36.6]} 23. Qf2 {[%clk 0:01:20.1]} 23... axb5
{[%clk 0:01:33.6]} 24. axb5 {[%clk 0:01:22]} 24... Na7 {[%clk 0:01:26.9]} 25.
Bb4 {[%clk 0:01:11.3]} 25... Rf7 {[%clk 0:01:08.5]} 26. Bc5 {[%clk 0:01:12]}
26... Nc8 {[%clk 0:01:02.1]} 27. Bxd4 {[%clk 0:01:12.7]} 27... Qg6 {[%clk
0:01:02.8]} 28. Be5 {[%clk 0:01:10.4]} 28... h5 {[%clk 0:00:49.1]} 29. Re3
{[%clk 0:01:09.1]} 29... Ne7 {[%clk 0:00:38.9]} 30. Rg3 {[%clk 0:01:08.4]} 30...
Qe6 {[%clk 0:00:38.6]} 31. Re1 {[%clk 0:00:50.6]} 31... Be4 {[%clk 0:00:21.9]}
32. Bxe4 {[%clk 0:00:44.1]} 32... fxe4 {[%clk 0:00:23.8]} 33. Rxe4 {[%clk
0:00:45.5]} 33... Nf5 {[%clk 0:00:24.6]} 34. Rd3 {[%clk 0:00:33.9]} 34... Rxd3
{[%clk 0:00:25.1]} 35. cxd3 {[%clk 0:00:35.8]} 35... Qd5 {[%clk 0:00:26.6]} 36.
Qc2 {[%clk 0:00:24.3]} 36... Qxb5 {[%clk 0:00:24.2]} 37. g3 {[%clk 0:00:08.5]}
37... Rd7 {[%clk 0:00:21.5]} 38. Qc4+ {[%clk 0:00:07.9]} 38... Qxc4 {[%clk
0:00:21.5]} 39. dxc4 {[%clk 0:00:09.8]} 39... Rd2 {[%clk 0:00:21.8]} 40. Re1
{[%clk 0:00:09.4]} 40... Kf7 {[%clk 0:00:20.9]} 41. Rb1 {[%clk 0:00:10.3]} 41...
Ne3 {[%clk 0:00:19.6]} 42. Rxb7+ {[%clk 0:00:10.3]} 42... Ke6 {[%clk 0:00:20.8]}
43. Rxg7 {[%clk 0:00:10]} 43... Rg2+ {[%clk 0:00:21.7]} 44. Kh1 {[%clk
0:00:10.9]} 44... Rc2 {[%clk 0:00:21.8]} 45. h3 {[%clk 0:00:11.2]} 45... Rc1+
{[%clk 0:00:21.5]} 46. Kh2 {[%clk 0:00:12.4]} 46... Rxc4 {[%clk 0:00:21.8]} 47.
Rg5 {[%clk 0:00:11.4]} 47... Rc2+ {[%clk 0:00:22.8]} 48. Kg1 {[%clk 0:00:12.5]}
48... h4 {[%clk 0:00:17.6]} 49. gxh4 {[%clk 0:00:11.1]} 49... Nf5 {[%clk
0:00:19]} 50. h5 {[%clk 0:00:11.9]} 50... Rc1+ {[%clk 0:00:19]} 51. Kg2 {[%clk
0:00:12.4]} 51... Rc2+ {[%clk 0:00:19.9]} 52. Kf3 {[%clk 0:00:13.1]} 52... Rh2
{[%clk 0:00:17.9]} 53. Ke4 {[%clk 0:00:14.1]} 53... Ne7 {[%clk 0:00:16.6]} 54.
f5+ {[%clk 0:00:13.7]} 1-0

[Event "*** Titled Tuesday Blitz"]
[Site "Chess.com"]
[Date "2019.07.02"]
[Round "6"]
[White "3f32"]
[Black "hermionegrangermagic"]
[Result "0-1"]
[WhiteElo "2470"]
[BlackElo "2366"]
[TimeControl "180+2"]
[EndTime "14:24:10 PDT"]
[Termination "hermionegrangermagic won by resignation"]

1. d4 {[%clk 0:03:01.9]} 1... d5 {[%clk 0:02:58.2]} 2. Nf3 {[%clk 0:03:01.4]}
2... Nf6 {[%clk 0:02:58.8]} 3. Bf4 {[%clk 0:03:01.4]} 3... c5 {[%clk 0:02:57.4]}
4. e3 {[%clk 0:03:01]} 4... Nc6 {[%clk 0:02:57.5]} 5. Nbd2 {[%clk 0:02:55.9]}
5... cxd4 {[%clk 0:02:52.5]} 6. exd4 {[%clk 0:02:50.8]} 6... g6 {[%clk
0:02:52.7]} 7. c3 {[%clk 0:02:48.2]} 7... Bg7 {[%clk 0:02:53.5]} 8. Bd3 {[%clk
0:02:49.1]} 8... O-O {[%clk 0:02:53.9]} 9. O-O {[%clk 0:02:50.6]} 9... Bf5
{[%clk 0:02:50.5]} 10. Bxf5 {[%clk 0:02:49.6]} 10... gxf5 {[%clk 0:02:51.2]} 11.
Ne5 {[%clk 0:02:43.3]} 11... Ne4 {[%clk 0:02:40.1]} 12. Ndf3 {[%clk 0:02:25.9]}
12... f6 {[%clk 0:02:15.2]} 13. Nd3 {[%clk 0:02:23.1]} 13... Re8 {[%clk
0:02:15.5]} 14. h3 {[%clk 0:02:04.7]} 14... e5 {[%clk 0:02:15.6]} 15. Bh2 {[%clk
0:02:05]} 15... Qb6 {[%clk 0:02:12.4]} 16. Rc1 {[%clk 0:01:09.5]} 16... Rac8
{[%clk 0:01:45.2]} 17. Rc2 {[%clk 0:00:46.1]} 17... f4 {[%clk 0:01:12.9]} 18.
Re1 {[%clk 0:00:40]} 18... Rcd8 {[%clk 0:01:04.5]} 19. Rce2 {[%clk 0:00:28.1]}
19... Na5 {[%clk 0:00:55.6]} 20. Qa4 {[%clk 0:00:18]} 20... Nc4 {[%clk
0:00:51.7]} 21. Rxe4 {[%clk 0:00:18.6]} 21... Nxb2 {[%clk 0:00:48.2]} 22. Nxb2
{[%clk 0:00:17.9]} 22... dxe4 {[%clk 0:00:46.7]} 23. Nc4 {[%clk 0:00:17.3]}
23... Qc7 {[%clk 0:00:25.1]} 24. Rxe4 {[%clk 0:00:17.7]} 24... b5 {[%clk
0:00:21.1]} 25. Qxb5 {[%clk 0:00:17.4]} 25... Rb8 {[%clk 0:00:22.2]} 26. Qd5+
{[%clk 0:00:18.2]} 26... Kh8 {[%clk 0:00:22.5]} 27. Re1 {[%clk 0:00:16.5]} 27...
exd4 {[%clk 0:00:22.9]} 28. Rxe8+ {[%clk 0:00:14.9]} 28... Rxe8 {[%clk
0:00:23.6]} 29. cxd4 {[%clk 0:00:14.7]} 29... Rd8 {[%clk 0:00:24.7]} 30. Qb5
{[%clk 0:00:15.5]} 30... Rb8 {[%clk 0:00:25.2]} 31. Qb3 {[%clk 0:00:03.8]} 31...
Rxb3 {[%clk 0:00:24.9]} 32. axb3 {[%clk 0:00:05.7]} 32... Bf8 {[%clk 0:00:23.3]}
33. g3 {[%clk 0:00:05.5]} 33... Bd6 {[%clk 0:00:22.6]} 34. Kg2 {[%clk
0:00:06.3]} 34... Kg7 {[%clk 0:00:22.7]} 35. Nfd2 {[%clk 0:00:06.9]} 35... fxg3
{[%clk 0:00:23.2]} 36. Bxg3 {[%clk 0:00:07.9]} 36... Bxg3 {[%clk 0:00:23.8]} 37.
fxg3 {[%clk 0:00:09.8]} 37... Qc6+ {[%clk 0:00:23.7]} 38. Kf2 {[%clk 0:00:10.6]}
38... Qd5 {[%clk 0:00:23.7]} 39. Nf3 {[%clk 0:00:11.9]} 39... a5 {[%clk
0:00:21.7]} 40. Ncd2 {[%clk 0:00:10]} 40... Qb7 {[%clk 0:00:19.8]} 41. Ke3
{[%clk 0:00:10.9]} 41... Qe7+ {[%clk 0:00:20.3]} 42. Kf4 {[%clk 0:00:11.4]}
42... Qd6+ {[%clk 0:00:19.3]} 43. Kg4 {[%clk 0:00:12]} 43... Qe6+ {[%clk
0:00:20.4]} 44. Kf4 {[%clk 0:00:13]} 44... Qxh3 {[%clk 0:00:20.4]} 45. d5 {[%clk
0:00:13.6]} 45... h5 {[%clk 0:00:20.8]} 46. Ne4 {[%clk 0:00:12.4]} 46... Qg4+
{[%clk 0:00:21]} 47. Ke3 {[%clk 0:00:13.7]} 47... Kf7 {[%clk 0:00:20.7]} 48. d6
{[%clk 0:00:12.1]} 48... Ke6 {[%clk 0:00:18]} 49. Nd4+ {[%clk 0:00:13.1]} 49...
Ke5 {[%clk 0:00:15.4]} 50. Nc6+ {[%clk 0:00:10.7]} 50... Ke6 {[%clk 0:00:14]}
51. Nd4+ {[%clk 0:00:10.2]} 51... Kf7 {[%clk 0:00:14.1]} 52. Nf3 {[%clk
0:00:09.4]} 52... Qd7 {[%clk 0:00:09.3]} 53. Neg5+ {[%clk 0:00:08]} 53... fxg5
{[%clk 0:00:04]} 54. Ne5+ {[%clk 0:00:09]} 54... Ke6 {[%clk 0:00:05.5]} 55. Nxd7
{[%clk 0:00:10.7]} 55... Kxd7 {[%clk 0:00:07.4]} 56. Ke4 {[%clk 0:00:09.9]}
56... Kxd6 {[%clk 0:00:08.6]} 57. Kf5 {[%clk 0:00:11.3]} 57... h4 {[%clk
0:00:10.1]} 58. gxh4 {[%clk 0:00:12.5]} 58... gxh4 {[%clk 0:00:12]} 59. Kg4
{[%clk 0:00:14.1]} 59... Kc5 {[%clk 0:00:13.3]} 60. Kxh4 {[%clk 0:00:15.7]}
60... Kb4 {[%clk 0:00:14.6]} 61. Kg3 {[%clk 0:00:17.6]} 61... Kxb3 {[%clk
0:00:16.1]} 62. Kf2 {[%clk 0:00:19.5]} 62... Kb2 {[%clk 0:00:17.6]} 63. Ke2
{[%clk 0:00:20.4]} 63... a4 {[%clk 0:00:19.5]} 64. Kd2 {[%clk 0:00:22.3]} 64...
a3 {[%clk 0:00:21]} 0-1